[Event "*** Qualifier 3: Titled Tuesday 3|2 Blitz"]
[Site "Chess.com"]
[Date "2017.04.18"]
[Round "10"]
[White "Rock700chess"]
[Black "Marcus_Harvey"]
[Result "1-0"]
[WhiteElo "2272"]
[BlackElo "2500"]
[TimeControl "180+2"]
[EndTime "15:14:52 PDT"]
[Termination "Rock700chess won by resignation"]

1. e4 {[%clk 0:03:02]} 1... e6 {[%clk 0:03:01.2]} 2. d4 {[%clk 0:03:03.3]} 2...
d5 {[%clk 0:03:02.5]} 3. Nc3 {[%clk 0:03:05.2]} 3... Nf6 {[%clk 0:03:03.8]} 4.
e5 {[%clk 0:03:05.6]} 4... Nfd7 {[%clk 0:03:05]} 5. f4 {[%clk 0:03:07.2]} 5...
c5 {[%clk 0:03:06.7]} 6. Nf3 {[%clk 0:03:07.1]} 6... Nc6 {[%clk 0:03:08.2]} 7.
Be3 {[%clk 0:03:08.5]} 7... a6 {[%clk 0:03:09.6]} 8. Qd2 {[%clk 0:03:09.2]} 8...
Qb6 {[%clk 0:03:10.7]} 9. O-O-O {[%clk 0:02:17.8]} 9... Qa5 {[%clk 0:03:10.9]}
10. Kb1 {[%clk 0:02:15.9]} 10... b5 {[%clk 0:03:11.3]} 11. dxc5 {[%clk
0:02:04.5]} 11... b4 {[%clk 0:03:09.2]} 12. Nxd5 {[%clk 0:02:04.1]} 12... Bxc5
{[%clk 0:01:40.9]} 13. Bxc5 {[%clk 0:02:01.1]} 13... Nxc5 {[%clk 0:01:41.8]} 14.
Ne3 {[%clk 0:01:54.5]} 14... Ne4 {[%clk 0:01:26.4]} 15. Qd3 {[%clk 0:01:52.7]}
15... Nf2 {[%clk 0:00:09.6]} 16. Qd6 {[%clk 0:01:49.4]} 16... Qb6 {[%clk
0:00:11.2]} 17. Nc4 {[%clk 0:01:46.5]} 17... Qb7 {[%clk 0:00:06.5]} 18. Ng5
{[%clk 0:01:30.7]} 18... Nxd1 {[%clk 0:00:05.1]} 19. Qc5 {[%clk 0:01:22]} 19...
Nc3+ {[%clk 0:00:05.1]} 20. bxc3 {[%clk 0:01:21.1]} 20... bxc3+ {[%clk
0:00:06.3]} 21. Ka1 {[%clk 0:01:21.2]} 21... Kd8 {[%clk 0:00:06.1]} 22. Be2
{[%clk 0:01:19.3]} 22... f6 {[%clk 0:00:07.5]} 23. Rd1+ {[%clk 0:01:04.1]} 23...
Bd7 {[%clk 0:00:08.7]} 24. Nxe6+ {[%clk 0:01:01.9]} 1-0

[Event "*** Qualifier 3: Titled Tuesday 3|2 Blitz"]
[Site "Chess.com"]
[Date "2017.04.18"]
[Round "10"]
[White "grzechu96"]
[Black "Ilja_Semjonovs"]
[Result "1-0"]
[WhiteElo "2399"]
[BlackElo "2211"]
[TimeControl "180+2"]
[EndTime "15:15:31 PDT"]
[Termination "grzechu96 won by resignation"]

1. e4 {[%clk 0:03:02]} 1... c5 {[%clk 0:02:52.6]} 2. Nf3 {[%clk 0:03:02.8]} 2...
d6 {[%clk 0:02:53.9]} 3. d4 {[%clk 0:02:53.9]} 3... cxd4 {[%clk 0:02:54.4]} 4.
Nxd4 {[%clk 0:02:55.8]} 4... Nf6 {[%clk 0:02:55]} 5. Nc3 {[%clk 0:02:57.2]} 5...
a6 {[%clk 0:02:56.3]} 6. Be3 {[%clk 0:02:58.6]} 6... e5 {[%clk 0:02:57.4]} 7.
Nb3 {[%clk 0:02:59.4]} 7... Be6 {[%clk 0:02:58.5]} 8. f3 {[%clk 0:03:00.8]} 8...
Be7 {[%clk 0:02:59.8]} 9. Qd2 {[%clk 0:03:01.5]} 9... O-O {[%clk 0:03:00.9]} 10.
O-O-O {[%clk 0:03:02.2]} 10... a5 {[%clk 0:02:57.9]} 11. a4 {[%clk 0:03:00.8]}
11... Na6 {[%clk 0:02:51.8]} 12. Bb5 {[%clk 0:03:01.9]} 12... Nc7 {[%clk
0:02:46.5]} 13. Be2 {[%clk 0:02:56.2]} 13... d5 {[%clk 0:02:35]} 14. Bb6 {[%clk
0:02:57.1]} 14... d4 {[%clk 0:02:17.6]} 15. Nb5 {[%clk 0:02:57.8]} 15... Nfe8
{[%clk 0:02:10.2]} 16. Kb1 {[%clk 0:02:44.6]} 16... Qb8 {[%clk 0:02:02.5]} 17.
f4 {[%clk 0:02:40.8]} 17... f6 {[%clk 0:02:03]} 18. Nxc7 {[%clk 0:02:32.4]}
18... Nxc7 {[%clk 0:02:03.3]} 19. f5 {[%clk 0:02:31.5]} 19... Bf7 {[%clk
0:02:03.7]} 20. g4 {[%clk 0:02:32.2]} 20... Na6 {[%clk 0:01:09]} 21. h4 {[%clk
0:02:29.3]} 21... Nb4 {[%clk 0:01:09.8]} 22. Bc5 {[%clk 0:02:03.6]} 22... Bxb3
{[%clk 0:00:39.8]} 23. Bxe7 {[%clk 0:01:57.4]} 23... Bxc2+ {[%clk 0:00:40.9]}
24. Ka1 {[%clk 0:01:56.7]} 24... Bxd1 {[%clk 0:00:41]} 25. Bxd1 {[%clk
0:01:55.7]} 25... Rc8 {[%clk 0:00:39.9]} 26. Bb3+ {[%clk 0:01:56.3]} 26... Kh8
{[%clk 0:00:40.4]} 27. g5 {[%clk 0:01:52.3]} 27... Ra6 {[%clk 0:00:40.5]} 28.
gxf6 {[%clk 0:01:44.3]} 28... gxf6 {[%clk 0:00:41.6]} 29. Qh6 {[%clk 0:01:45.6]}
29... Qc7 {[%clk 0:00:08.5]} 30. Bxf6+ {[%clk 0:01:33.1]} 30... Rxf6 {[%clk
0:00:09.2]} 31. Qxf6+ {[%clk 0:01:35]} 31... Qg7 {[%clk 0:00:10.2]} 32. Qe6
{[%clk 0:01:36.9]} 32... Rd8 {[%clk 0:00:07.1]} 33. f6 {[%clk 0:01:31.3]} 33...
Qg2 {[%clk 0:00:07.8]} 34. Rc1 {[%clk 0:01:30.3]} 34... Nd3 {[%clk 0:00:07.8]}
35. Rb1 {[%clk 0:01:28.2]} 35... Nc5 {[%clk 0:00:08.7]} 36. Qe7 {[%clk
0:01:26.8]} 36... Nxb3+ {[%clk 0:00:09.3]} 37. Ka2 {[%clk 0:01:28.1]} 37... Qg8
{[%clk 0:00:08.6]} 38. f7 {[%clk 0:01:27.9]} 38... Qf8 {[%clk 0:00:08.8]} 39.
Qf6+ {[%clk 0:01:28.5]} 39... Qg7 {[%clk 0:00:10.3]} 40. Qxd8+ {[%clk 0:01:30]}
1-0

[Event "*** Qualifier 3: Titled Tuesday 3|2 Blitz"]
[Site "Chess.com"]
[Date "2017.04.18"]
[Round "10"]
[White "DryCounty"]
[Black "DiogenesSinopeus"]
[Result "1-0"]
[WhiteElo "2436"]
[BlackElo "2269"]
[TimeControl "180+2"]
[EndTime "15:15:38 PDT"]
[Termination "DryCounty won by resignation"]

1. Nf3 {[%clk 0:03:02]} 1... Nf6 {[%clk 0:03:00.8]} 2. c4 {[%clk 0:03:02.2]}
2... e6 {[%clk 0:03:01.9]} 3. g3 {[%clk 0:03:02.7]} 3... a6 {[%clk 0:03:03]} 4.
Bg2 {[%clk 0:03:02.8]} 4... b5 {[%clk 0:03:04.2]} 5. b3 {[%clk 0:03:03.9]} 5...
c5 {[%clk 0:03:05.3]} 6. O-O {[%clk 0:03:04.1]} 6... Bb7 {[%clk 0:03:06.2]} 7.
Nc3 {[%clk 0:03:05.1]} 7... Qb6 {[%clk 0:03:07.1]} 8. d4 {[%clk 0:03:04.5]} 8...
cxd4 {[%clk 0:03:04.2]} 9. Nxd4 {[%clk 0:03:03.1]} 9... Bxg2 {[%clk 0:03:05]}
10. Kxg2 {[%clk 0:03:03.4]} 10... Nc6 {[%clk 0:02:50.6]} 11. Be3 {[%clk
0:03:00.7]} 11... Nxd4 {[%clk 0:02:39]} 12. Bxd4 {[%clk 0:03:01]} 12... Qc6+
{[%clk 0:02:38.9]} 13. f3 {[%clk 0:03:01.4]} 13... bxc4 {[%clk 0:02:37.4]} 14.
bxc4 {[%clk 0:03:00.7]} 14... Be7 {[%clk 0:02:30.3]} 15. Rc1 {[%clk 0:02:57.3]}
15... O-O {[%clk 0:02:29.9]} 16. Qd3 {[%clk 0:02:55.7]} 16... Rfc8 {[%clk
0:02:25.1]} 17. c5 {[%clk 0:02:42.8]} 17... d5 {[%clk 0:01:52.1]} 18. cxd6
{[%clk 0:02:35.9]} 18... Qxd6 {[%clk 0:01:50.5]} 19. Ne4 {[%clk 0:02:29.5]}
19... Nxe4 {[%clk 0:01:49.2]} 20. Qxe4 {[%clk 0:02:30.5]} 20... Qa3 {[%clk
0:01:21.5]} 21. Rxc8+ {[%clk 0:02:27.2]} 21... Rxc8 {[%clk 0:01:23.4]} 22. Qb7
{[%clk 0:02:09.1]} 22... Rc2 {[%clk 0:01:18.2]} 23. Rf2 {[%clk 0:02:03.7]} 23...
Bf8 {[%clk 0:01:00.5]} 24. h4 {[%clk 0:01:57]} 24... Qxa2 {[%clk 0:00:57]} 25.
Qe4 {[%clk 0:01:56.2]} 25... a5 {[%clk 0:00:41.9]} 26. h5 {[%clk 0:01:56.9]}
26... h6 {[%clk 0:00:41.7]} 27. g4 {[%clk 0:01:57.5]} 27... Rc1 {[%clk 0:00:24]}
28. Be3 {[%clk 0:01:24.3]} 28... Rd1 {[%clk 0:00:11.2]} 29. g5 {[%clk
0:01:22.7]} 29... Qa1 {[%clk 0:00:12.4]} 30. Kg3 {[%clk 0:00:54.8]} 30... Rg1+
{[%clk 0:00:13.2]} 31. Rg2 {[%clk 0:00:55.7]} 31... Bd6+ {[%clk 0:00:10.8]} 32.
f4 {[%clk 0:00:50.5]} 32... hxg5 {[%clk 0:00:04.6]} 33. Rxg1 {[%clk 0:00:50.9]}
33... Qxg1+ {[%clk 0:00:06.2]} 34. Bxg1 {[%clk 0:00:51.3]} 1-0

[Event "*** Qualifier 3: Titled Tuesday 3|2 Blitz"]
[Site "Chess.com"]
[Date "2017.04.18"]
[Round "10"]
[White "Keranke"]
[Black "Indianlad"]
[Result "1-0"]
[WhiteElo "2653"]
[BlackElo "2720"]
[TimeControl "180+2"]
[EndTime "15:15:39 PDT"]
[Termination "Keranke won by checkmate"]

1. d4 {[%clk 0:03:02]} 1... Nf6 {[%clk 0:03:01]} 2. Nf3 {[%clk 0:03:02.8]} 2...
d5 {[%clk 0:03:01.9]} 3. Bf4 {[%clk 0:03:04.3]} 3... g6 {[%clk 0:03:00.1]} 4. e3
{[%clk 0:03:04.1]} 4... Bg7 {[%clk 0:03:01.7]} 5. h3 {[%clk 0:03:03.9]} 5... O-O
{[%clk 0:03:03.5]} 6. Be2 {[%clk 0:03:04.2]} 6... c5 {[%clk 0:03:05.1]} 7. O-O
{[%clk 0:03:05.3]} 7... Nc6 {[%clk 0:03:05.3]} 8. c3 {[%clk 0:03:05.9]} 8... Nd7
{[%clk 0:03:06.8]} 9. Nbd2 {[%clk 0:03:02.7]} 9... Re8 {[%clk 0:03:08.3]} 10.
Qa4 {[%clk 0:02:53.9]} 10... Nb6 {[%clk 0:03:07.4]} 11. Qa3 {[%clk 0:02:47.1]}
11... cxd4 {[%clk 0:03:08.7]} 12. cxd4 {[%clk 0:02:44.8]} 12... f6 {[%clk
0:03:03.4]} 13. Bg3 {[%clk 0:02:38.2]} 13... e5 {[%clk 0:03:03.6]} 14. dxe5
{[%clk 0:02:23.1]} 14... fxe5 {[%clk 0:03:05.5]} 15. Rfd1 {[%clk 0:02:22.8]}
15... Be6 {[%clk 0:03:02.6]} 16. Bh4 {[%clk 0:02:22.3]} 16... Qc7 {[%clk
0:02:54.1]} 17. Ng5 {[%clk 0:02:19.5]} 17... Bf7 {[%clk 0:02:33.3]} 18. Rac1
{[%clk 0:02:11.9]} 18... h6 {[%clk 0:02:33]} 19. Nxf7 {[%clk 0:02:12.8]} 19...
Qxf7 {[%clk 0:02:34.9]} 20. e4 {[%clk 0:01:59.6]} 20... Nd4 {[%clk 0:02:33.7]}
21. Bf1 {[%clk 0:02:00]} 21... Rf8 {[%clk 0:02:18.8]} 22. exd5 {[%clk 0:01:56]}
22... g5 {[%clk 0:02:20.2]} 23. Bg3 {[%clk 0:01:56.7]} 23... h5 {[%clk
0:02:21.7]} 24. Ne4 {[%clk 0:01:50.9]} 24... h4 {[%clk 0:02:19.8]} 25. Bh2
{[%clk 0:01:41.4]} 25... Nxd5 {[%clk 0:02:12.3]} 26. Bc4 {[%clk 0:01:39.9]}
26... Rad8 {[%clk 0:02:10.7]} 27. Nd6 {[%clk 0:01:18]} 27... Qxf2+ {[%clk
0:01:23.3]} 28. Kh1 {[%clk 0:01:18.6]} 28... Kh8 {[%clk 0:01:18.3]} 29. Bxd5
{[%clk 0:01:16.4]} 29... Qf6 {[%clk 0:01:16.6]} 30. Ne4 {[%clk 0:01:13.6]} 30...
Qg6 {[%clk 0:01:18]} 31. Bxb7 {[%clk 0:01:08.3]} 31... g4 {[%clk 0:01:19.4]} 32.
hxg4 {[%clk 0:01:06.5]} 32... Ne2 {[%clk 0:01:20.8]} 33. Rxd8 {[%clk 0:00:59.3]}
33... Rxd8 {[%clk 0:01:22.7]} 34. Re1 {[%clk 0:01:00.9]} 34... Qb6 {[%clk
0:01:17.2]} 35. Qe7 {[%clk 0:00:59]} 35... Ng3+ {[%clk 0:00:54.7]} 36. Nxg3
{[%clk 0:00:59.5]} 36... hxg3 {[%clk 0:00:56.6]} 37. Bxg3 {[%clk 0:01:01.4]}
37... Rd6 {[%clk 0:00:51.7]} 38. Qe8+ {[%clk 0:00:58.4]} 38... Kh7 {[%clk
0:00:52.2]} 39. Be4+ {[%clk 0:00:59.1]} 39... Kh6 {[%clk 0:00:51.1]} 40. Qh5#
{[%clk 0:00:58.9]} 1-0

[Event "*** Qualifier 3: Titled Tuesday 3|2 Blitz"]
[Site "Chess.com"]
[Date "2017.04.18"]
[Round "10"]
[White "Rogue_King"]
[Black "CM_FM_IM_GM"]
[Result "1-0"]
[WhiteElo "2128"]
[BlackElo "1993"]
[TimeControl "180+2"]
[EndTime "15:15:40 PDT"]
[Termination "Rogue_King won by checkmate"]

1. d4 {[%clk 0:03:02]} 1... Nf6 {[%clk 0:03:00.7]} 2. c4 {[%clk 0:03:03.3]} 2...
e6 {[%clk 0:03:01.9]} 3. Nc3 {[%clk 0:03:04.9]} 3... Bb4 {[%clk 0:03:01.7]} 4.
f3 {[%clk 0:03:06.3]} 4... d5 {[%clk 0:03:02.4]} 5. a3 {[%clk 0:03:06.8]} 5...
Bxc3+ {[%clk 0:03:01]} 6. bxc3 {[%clk 0:03:08.7]} 6... O-O {[%clk 0:03:02.2]} 7.
e3 {[%clk 0:03:07.8]} 7... b6 {[%clk 0:03:03]} 8. cxd5 {[%clk 0:03:08.5]} 8...
exd5 {[%clk 0:03:03.5]} 9. Bd3 {[%clk 0:03:09.6]} 9... Nbd7 {[%clk 0:03:02.6]}
10. Ne2 {[%clk 0:03:10.4]} 10... c5 {[%clk 0:03:03.5]} 11. O-O {[%clk
0:03:11.1]} 11... c4 {[%clk 0:03:04.6]} 12. Bc2 {[%clk 0:03:11.8]} 12... Re8
{[%clk 0:03:05.3]} 13. Ng3 {[%clk 0:03:12.7]} 13... g6 {[%clk 0:03:05.4]} 14.
Qd2 {[%clk 0:03:02.3]} 14... Bb7 {[%clk 0:03:05.3]} 15. Qf2 {[%clk 0:03:03]}
15... a6 {[%clk 0:03:05.5]} 16. Bd2 {[%clk 0:03:03.7]} 16... b5 {[%clk
0:03:05.7]} 17. Rae1 {[%clk 0:03:04.1]} 17... Nb6 {[%clk 0:02:55.2]} 18. h3
{[%clk 0:03:04.7]} 18... Qd6 {[%clk 0:02:52.1]} 19. e4 {[%clk 0:02:54.1]} 19...
Qxa3 {[%clk 0:02:51.3]} 20. e5 {[%clk 0:02:53.4]} 20... Nfd7 {[%clk 0:02:50.7]}
21. f4 {[%clk 0:02:54.6]} 21... Qa2 {[%clk 0:02:42.6]} 22. Bb1 {[%clk
0:02:44.4]} 22... Qa3 {[%clk 0:02:39.5]} 23. f5 {[%clk 0:02:44.9]} 23... Nf8
{[%clk 0:02:37.8]} 24. fxg6 {[%clk 0:02:40.5]} 24... fxg6 {[%clk 0:02:30.5]} 25.
Qf7+ {[%clk 0:02:40.8]} 25... Kh8 {[%clk 0:02:30.9]} 26. Bh6 {[%clk 0:01:58]}
26... Ne6 {[%clk 0:02:26.5]} 27. Bxg6 {[%clk 0:01:33.5]} 27... hxg6 {[%clk
0:02:20.3]} 28. Rf4 {[%clk 0:01:34.2]} 28... Qe7 {[%clk 0:02:19]} 29. Rf6 {[%clk
0:00:28.8]} 29... Qxf7 {[%clk 0:02:04.1]} 30. Rxf7 {[%clk 0:00:30.7]} 30... Rab8
{[%clk 0:02:03]} 31. Ref1 {[%clk 0:00:29.8]} 31... Bc6 {[%clk 0:01:53.5]} 32.
R1f6 {[%clk 0:00:30]} 32... Rb7 {[%clk 0:01:44.6]} 33. Rxb7 {[%clk 0:00:11.8]}
33... Bxb7 {[%clk 0:01:44.8]} 34. Rxg6 {[%clk 0:00:13.4]} 34... b4 {[%clk
0:01:44.9]} 35. cxb4 {[%clk 0:00:13.3]} 35... c3 {[%clk 0:01:45.7]} 36. Nh5
{[%clk 0:00:13.3]} 36... Nc4 {[%clk 0:01:24.6]} 37. Nf6 {[%clk 0:00:14.1]} 37...
Rc8 {[%clk 0:01:04.3]} 38. Bg7+ {[%clk 0:00:15.2]} 38... Nxg7 {[%clk 0:01:04.5]}
39. Rh6# {[%clk 0:00:17.1]} 1-0

[Event "*** Qualifier 3: Titled Tuesday 3|2 Blitz"]
[Site "Chess.com"]
[Date "2017.04.18"]
[Round "10"]
[White "BogdanDeac"]
[Black "Sebastian"]
[Result "0-1"]
[WhiteElo "2544"]
[BlackElo "2664"]
[TimeControl "180+2"]
[EndTime "15:15:50 PDT"]
[Termination "Sebastian won by resignation"]

1. d4 {[%clk 0:03:02]} 1... Nf6 {[%clk 0:03:00.9]} 2. Bf4 {[%clk 0:03:00.7]}
2... g6 {[%clk 0:03:02]} 3. Nc3 {[%clk 0:03:00.8]} 3... d5 {[%clk 0:03:02.3]} 4.
e3 {[%clk 0:03:01.5]} 4... Bg7 {[%clk 0:03:02.7]} 5. h4 {[%clk 0:03:02.3]} 5...
h5 {[%clk 0:03:02.5]} 6. Nf3 {[%clk 0:03:00.9]} 6... O-O {[%clk 0:02:51.1]} 7.
Ne5 {[%clk 0:02:50.6]} 7... c5 {[%clk 0:02:51.5]} 8. Qd2 {[%clk 0:02:43.7]} 8...
Nc6 {[%clk 0:02:49.6]} 9. Be2 {[%clk 0:02:37.4]} 9... Bf5 {[%clk 0:02:34.8]} 10.
O-O {[%clk 0:02:17.2]} 10... cxd4 {[%clk 0:02:22.2]} 11. exd4 {[%clk 0:02:17.3]}
11... Rc8 {[%clk 0:02:23.9]} 12. Rfd1 {[%clk 0:02:14.4]} 12... Ne4 {[%clk
0:01:57]} 13. Nxe4 {[%clk 0:02:11.3]} 13... Bxe4 {[%clk 0:01:58.1]} 14. c3
{[%clk 0:02:06.6]} 14... Bf5 {[%clk 0:01:41.2]} 15. Qe3 {[%clk 0:01:59.3]} 15...
e6 {[%clk 0:01:31.6]} 16. g3 {[%clk 0:01:45]} 16... f6 {[%clk 0:01:03.4]} 17.
Nxc6 {[%clk 0:01:42.2]} 17... Rxc6 {[%clk 0:01:00.7]} 18. f3 {[%clk 0:01:25.7]}
18... e5 {[%clk 0:01:01.4]} 19. dxe5 {[%clk 0:00:27.9]} 19... fxe5 {[%clk
0:01:02.3]} 20. Bg5 {[%clk 0:00:29.2]} 20... Qa5 {[%clk 0:01:03.1]} 21. b4
{[%clk 0:00:27.1]} 21... Qa3 {[%clk 0:01:00.2]} 22. Rxd5 {[%clk 0:00:27]} 22...
Rxc3 {[%clk 0:00:59]} 23. Qd2 {[%clk 0:00:13.9]} 23... Rc2 {[%clk 0:00:39.4]}
24. Qd1 {[%clk 0:00:14.6]} 24... Qxb4 {[%clk 0:00:27.5]} 25. Rb1 {[%clk
0:00:13.6]} 25... Qc3 {[%clk 0:00:20.9]} 26. Rxb7 {[%clk 0:00:13.8]} 26... Rxa2
{[%clk 0:00:18.9]} 27. Rd6 {[%clk 0:00:10.6]} 27... Ra1 {[%clk 0:00:18.8]} 28.
Bc4+ {[%clk 0:00:03.6]} 28... Kh8 {[%clk 0:00:19.7]} 0-1

[Event "*** Qualifier 3: Titled Tuesday 3|2 Blitz"]
[Site "Chess.com"]
[Date "2017.04.18"]
[Round "10"]
[White "PowerThinking2650"]
[Black "pastouche06"]
[Result "1-0"]
[WhiteElo "2244"]
[BlackElo "2291"]
[TimeControl "180+2"]
[EndTime "15:16:18 PDT"]
[Termination "PowerThinking2650 won by resignation"]

1. e4 {[%clk 0:03:02]} 1... c6 {[%clk 0:03:00.9]} 2. d4 {[%clk 0:03:02.1]} 2...
d5 {[%clk 0:03:02.4]} 3. Nc3 {[%clk 0:03:03.8]} 3... b5 {[%clk 0:03:03.5]} 4.
exd5 {[%clk 0:02:48.3]} 4... b4 {[%clk 0:03:04.1]} 5. Na4 {[%clk 0:02:49.4]}
5... cxd5 {[%clk 0:03:05]} 6. Nc5 {[%clk 0:02:46]} 6... e6 {[%clk 0:03:06.2]} 7.
Bb5+ {[%clk 0:02:44.6]} 7... Nd7 {[%clk 0:03:07.2]} 8. Nf3 {[%clk 0:02:39.8]}
8... Nf6 {[%clk 0:02:50.3]} 9. Ne5 {[%clk 0:02:30.4]} 9... Bxc5 {[%clk
0:02:48.2]} 10. dxc5 {[%clk 0:02:30.3]} 10... Qc7 {[%clk 0:02:49.5]} 11. Qe2
{[%clk 0:01:46]} 11... Qxc5 {[%clk 0:02:39.1]} 12. Be3 {[%clk 0:01:35.7]} 12...
Qc7 {[%clk 0:02:31.5]} 13. Bf4 {[%clk 0:01:35]} 13... O-O {[%clk 0:01:37.3]} 14.
Ng6 {[%clk 0:01:24.2]} 14... e5 {[%clk 0:01:37.6]} 15. Nxf8 {[%clk 0:01:24.8]}
15... Kxf8 {[%clk 0:01:36.2]} 16. Bg3 {[%clk 0:01:19.8]} 16... a6 {[%clk
0:01:31.7]} 17. Ba4 {[%clk 0:01:17.4]} 17... Bb7 {[%clk 0:01:29.9]} 18. O-O
{[%clk 0:01:16.6]} 18... Qa5 {[%clk 0:01:30.7]} 19. Bxd7 {[%clk 0:01:14.2]}
19... Nxd7 {[%clk 0:01:31.2]} 20. Bxe5 {[%clk 0:01:14.9]} 20... Nxe5 {[%clk
0:01:14.1]} 21. Qxe5 {[%clk 0:01:15.1]} 21... Qc5 {[%clk 0:01:15.5]} 22. c3
{[%clk 0:01:12.5]} 22... Re8 {[%clk 0:01:14.4]} 23. Qd4 {[%clk 0:01:12]} 23...
Qxd4 {[%clk 0:01:14.1]} 24. cxd4 {[%clk 0:01:13.3]} 24... Re2 {[%clk 0:01:15.8]}
25. Rac1 {[%clk 0:01:10.3]} 25... a5 {[%clk 0:01:15.2]} 26. Rfe1 {[%clk
0:01:05.7]} 26... Rxb2 {[%clk 0:01:12.4]} 27. Rc7 {[%clk 0:01:06.2]} 27... Ba6
{[%clk 0:01:13.7]} 28. Ra7 {[%clk 0:01:05]} 28... Be2 {[%clk 0:01:11.9]} 29.
Rxa5 {[%clk 0:00:58.7]} 29... g6 {[%clk 0:01:13.2]} 30. Rxd5 {[%clk 0:00:39.7]}
30... Rxa2 {[%clk 0:01:13.2]} 31. Rd8+ {[%clk 0:00:40.5]} 31... Kg7 {[%clk
0:01:14]} 32. Rb8 {[%clk 0:00:41.9]} 32... Rb2 {[%clk 0:01:14.3]} 33. d5 {[%clk
0:00:40.9]} 33... Bg4 {[%clk 0:01:09]} 34. h3 {[%clk 0:00:37.7]} 34... Bf5
{[%clk 0:01:09.2]} 35. g4 {[%clk 0:00:35.9]} 35... Bd7 {[%clk 0:01:08.4]} 36.
Re7 {[%clk 0:00:36.3]} 36... Ba4 {[%clk 0:01:07.6]} 37. d6 {[%clk 0:00:34]}
37... Rd2 {[%clk 0:01:08.1]} 38. Rxb4 {[%clk 0:00:32.6]} 38... Rd1+ {[%clk
0:01:09.5]} 39. Kh2 {[%clk 0:00:31.2]} 39... Bc6 {[%clk 0:01:11.4]} 40. Rf4
{[%clk 0:00:30.6]} 40... Rh1+ {[%clk 0:01:08.9]} 41. Kg3 {[%clk 0:00:31]} 41...
Rg1+ {[%clk 0:01:09.4]} 42. Kh4 {[%clk 0:00:29.3]} 42... Bd5 {[%clk 0:01:07.4]}
43. d7 {[%clk 0:00:24.8]} 43... Kh6 {[%clk 0:01:04.3]} 44. g5+ {[%clk
0:00:21.1]} 1-0

[Event "*** Qualifier 3: Titled Tuesday 3|2 Blitz"]
[Site "Chess.com"]
[Date "2017.04.18"]
[Round "10"]
[White "aRk_iN"]
[Black "cailinchetty"]
[Result "1-0"]
[WhiteElo "2103"]
[BlackElo "1947"]
[TimeControl "180+2"]
[EndTime "15:16:56 PDT"]
[Termination "aRk_iN won by checkmate"]

1. e4 {[%clk 0:03:02]} 1... c5 {[%clk 0:02:55]} 2. Nf3 {[%clk 0:03:03]} 2... Nc6
{[%clk 0:02:56.4]} 3. d4 {[%clk 0:03:03.5]} 3... cxd4 {[%clk 0:02:57.3]} 4. Nxd4
{[%clk 0:03:05.4]} 4... Nf6 {[%clk 0:02:57.8]} 5. Nc3 {[%clk 0:03:06.4]} 5... g6
{[%clk 0:02:57.9]} 6. Be3 {[%clk 0:02:54.5]} 6... Bg7 {[%clk 0:02:59]} 7. f3
{[%clk 0:02:34]} 7... O-O {[%clk 0:02:59.6]} 8. Qd2 {[%clk 0:02:31.6]} 8... d6
{[%clk 0:02:58.8]} 9. g4 {[%clk 0:02:30.6]} 9... Bd7 {[%clk 0:02:58.9]} 10. Be2
{[%clk 0:02:12.6]} 10... Rc8 {[%clk 0:02:57.8]} 11. g5 {[%clk 0:02:04.5]} 11...
Ne8 {[%clk 0:02:48.6]} 12. h4 {[%clk 0:02:00.7]} 12... Ne5 {[%clk 0:02:08.5]}
13. h5 {[%clk 0:01:53.9]} 13... Nc4 {[%clk 0:02:07.4]} 14. Bxc4 {[%clk
0:01:54.6]} 14... Rxc4 {[%clk 0:02:08]} 15. hxg6 {[%clk 0:01:47]} 15... fxg6
{[%clk 0:02:08.4]} 16. Qh2 {[%clk 0:01:35]} 16... Qa5 {[%clk 0:01:50.9]} 17.
O-O-O {[%clk 0:01:02.2]} 17... Rxc3 {[%clk 0:01:48.4]} 18. bxc3 {[%clk
0:01:03.4]} 18... Qxc3 {[%clk 0:01:47.5]} 19. Rd3 {[%clk 0:00:37.7]} 19... Qa5
{[%clk 0:01:20]} 20. Qxh7+ {[%clk 0:00:33.1]} 20... Kf7 {[%clk 0:01:19.7]} 21.
Rh6 {[%clk 0:00:25.7]} 21... Qe1+ {[%clk 0:01:08.2]} 22. Kb2 {[%clk 0:00:23.3]}
22... Rh8 {[%clk 0:00:37.5]} 23. Qxg6+ {[%clk 0:00:23.7]} 23... Kg8 {[%clk
0:00:39]} 24. Rxh8+ {[%clk 0:00:24.5]} 24... Kxh8 {[%clk 0:00:39.4]} 25. Qh5+
{[%clk 0:00:22.9]} 25... Kg8 {[%clk 0:00:39.8]} 26. g6 {[%clk 0:00:22.5]} 26...
Nc7 {[%clk 0:00:40.6]} 27. f4 {[%clk 0:00:07.6]} 27... Ne6 {[%clk 0:00:39.5]}
28. Qd1 {[%clk 0:00:06.2]} 28... Qb4+ {[%clk 0:00:38.3]} 29. Kc1 {[%clk
0:00:07.6]} 29... Nc5 {[%clk 0:00:38.2]} 30. Nb3 {[%clk 0:00:03]} 30... Nxd3+
{[%clk 0:00:35.4]} 31. cxd3 {[%clk 0:00:04.7]} 31... Be6 {[%clk 0:00:35.8]} 32.
Qc2 {[%clk 0:00:05.8]} 32... Qb5 {[%clk 0:00:30.6]} 33. f5 {[%clk 0:00:06.7]}
33... Bxb3 {[%clk 0:00:30.7]} 34. axb3 {[%clk 0:00:08.6]} 34... Qc6 {[%clk
0:00:28]} 35. Bxa7 {[%clk 0:00:06.8]} 35... Bd4 {[%clk 0:00:27.4]} 36. Bxd4
{[%clk 0:00:07.2]} 36... Qxc2+ {[%clk 0:00:27.7]} 37. Kxc2 {[%clk 0:00:08.7]}
37... b5 {[%clk 0:00:26.7]} 38. Kc3 {[%clk 0:00:09.9]} 38... Kf8 {[%clk
0:00:27.6]} 39. Kb4 {[%clk 0:00:10.6]} 39... e6 {[%clk 0:00:29.2]} 40. f6 {[%clk
0:00:10.3]} 40... e5 {[%clk 0:00:29.7]} 41. Bb6 {[%clk 0:00:11.1]} 41... d5
{[%clk 0:00:31.2]} 42. exd5 {[%clk 0:00:12]} 42... e4 {[%clk 0:00:32.3]} 43.
dxe4 {[%clk 0:00:13.5]} 43... Kg8 {[%clk 0:00:33.7]} 44. Kxb5 {[%clk 0:00:15.1]}
44... Kf8 {[%clk 0:00:35]} 45. Bc5+ {[%clk 0:00:16.1]} 45... Kg8 {[%clk
0:00:36.4]} 46. f7+ {[%clk 0:00:17.6]} 46... Kg7 {[%clk 0:00:36.3]} 47. f8=Q+
{[%clk 0:00:18.6]} 47... Kxg6 {[%clk 0:00:38.2]} 48. Qf5+ {[%clk 0:00:19.2]}
48... Kh6 {[%clk 0:00:36.5]} 49. Bf8# {[%clk 0:00:20]} 1-0